[Event "CZE Extraliga 2021-22"]
[Site "Czech Republic"]
[Date "2021.10.17"]
[Round "2.1"]
[White "LYS2 Nabaty Tamir GM 2648"]
[Black "OST2 Kociscak Jiri IM 2484"]
[Result "1-0"]
[ECO "D15"]
[WhiteElo "2648"]
[BlackElo "2484"]
[Annotator "NA"]
[PlyCount "75"]
[EventDate "2021.10.17"]
[EventCountry "CZE"]
[SourceTitle "playchess.com"]
[Source "ChessBase"]
[SourceQuality "1"]
[TimeControl "40/5400+30:1800+30"]

1. d4 d5 {[%emt 0:02:19]} 2. Nf3 {[%emt 0:00:38]} Nf6 {[%emt 0:00:10]} 3. c4 {[%emt 0:03:51]} c6 {[%emt 0:01:40]} 4. Nc3 {[%emt 0:05:20]} a6 {[%emt 0:02:03]} 5. cxd5 {[%emt 0:04:09]} cxd5 {[%emt 0:00:06]} 6. Bf4 {[%emt 0:00:16]} e6 {[%emt 0:07:01]} 7. e3 {[%emt 0:00:30]} Nc6 {[%emt 0:02:16]} 8. Bd3 {[%emt 0:00:48]} Be7 {[%emt 0:08:41]} 9. h3 {[%emt 0:00:49]} b5 {[%emt 0:09:21]} 10. O-O {[%emt 0:02:06]} Bb7 {[%emt 0:02:10]} 11. Rc1 {[%emt 0:01:58]} O-O {[%emt 0:02:48]} 12. a4 {[%emt 0:01:52]} b4 {[%emt 0:05:37]} 13. Nb1 {[%emt 0:06:17]} Qb6 {[%emt 0:08:25]} 14. Nbd2 {[%emt 0:04:16]} Rfc8 {[%emt 0:00:06]} 15. Bg5 {[%emt 0:15:15]} h6 {[%emt 0:09:25]} 16. Bh4 {[%emt 0:00:17]} Na5 {[%emt 0:02:15]} 17. Qe2 {[%emt 0:00:39]} Bc6 {[%emt 0:12:10]} 18. Ra1 {[%emt 0:06:10]} Be8 {[%emt 0:07:30]} 19. Ne5 {[%emt 0:01:40]} b3 {[%emt 0:01:59]} 20. f4 {[%emt 0:14:00]} Rc2 {[%emt 0:00:34]} 21. Bxf6 {[%emt 0:02:33]} gxf6 {[%emt 0:02:47]} 22. Qg4+ {[%emt 0:01:42]} Kf8 {[%emt 0:00:07]} 23. Qh4 {[%emt 0:02:22]} Bd8 {[%emt 0:00:13]} 24. Qxh6+ {[%emt 0:01:06]} Ke7 {[%emt 0:00:03]} 25. Bxc2 {[%emt 0:00:49]} bxc2 {[%emt 0:00:05]} 26. Nd3 {[%emt 0:00:58]} Nc4 {[%emt 0:00:16]} 27. Nxc4 {[%emt 0:03:31]} dxc4 {[%emt 0:00:04]} 28. Nc5 {[%emt 0:00:09]} Qxb2 {[%emt 0:00:04]} 29. f5 {[%emt 0:03:43]} e5 {[%emt 0:04:23]} 30. Ne4 {[%emt 0:00:31]} Qb6 {[%emt 0:01:03]} 31. dxe5 {[%emt 0:02:24]} fxe5 {[%emt 0:00:04]} 32. f6+ {[%emt 0:00:36]} Kd7 {[%emt 0:00:49]} 33. Rac1 {[%emt 0:01:04]} Qc6 34. Nc3 {[%emt 0:01:03]} Bb6 {[%emt 0:01:57]} 35. Rxc2 {[%emt 0:00:11]} Rd8 {[%emt 0:00:03]} 36. Rd2+ {[%emt 0:02:19]} Kc7 {[%emt 0:00:13]} 37. Rd3 Rd7 38. Rxd7+ {[%emt 0:03:29]} 1-0

[Event "CZE Extraliga 2021-22"]
[Site "Czech Republic"]
[Date "2021.10.17"]
[Round "2.1"]
[White "Druska, Juraj"]
[Black "Piesik, Piotr"]
[Result "1/2-1/2"]
[ECO "B10"]
[WhiteElo "2506"]
[BlackElo "2389"]
[Annotator "ChessBase"]
[PlyCount "124"]
[EventDate "2021.10.17"]
[EventCountry "CZE"]
[SourceTitle "playchess.com"]
[Source "ChessBase"]
[SourceQuality "1"]
[TimeControl "40/5400+30:1800+30"]

1. e4 {[%emt 0:00:24]} c6 {[%emt 0:00:22]} 2. Nf3 {[%emt 0:01:30]} d5 {[%emt 0:00:22]} 3. d3 {[%emt 0:00:05]} g6 {[%emt 0:00:32]} 4. Nbd2 {[%emt 0:00:13]} Bg7 {[%emt 0:00:14]} 5. d4 {[%emt 0:00:08]} Bg4 {[%emt 0:06:44]} 6. c3 {[%emt 0:24:51]} Nf6 {[%emt 0:13:14]} 7. e5 {[%emt 0:02:25]} Nfd7 {[%emt 0:01:53]} 8. h3 {[%emt 0:02:43]} Bxf3 {[%emt 0:00:39]} 9. Nxf3 {[%emt 0:07:08]} e6 {[%emt 0:12:16]} 10. Be3 {[%emt 0:14:07]} c5 {[%emt 0:01:41]} 11. Qd2 {[%emt 0:06:41]} Nc6 {[%emt 0:07:36]} 12. Be2 {[%emt 0:03:36]} cxd4 {[%emt 0:16:03]} 13. cxd4 {[%emt 0:00:16]} Qa5 {[%emt 0:00:04]} 14. Qxa5 {[%emt 0:06:06]} Nxa5 {[%emt 0:00:11]} 15. Rc1 {[%emt 0:00:04]} Nc6 {[%emt 0:05:03]} 16. O-O {[%emt 0:00:22]} O-O {[%emt 0:02:31]} 17. Rc2 {[%emt 0:02:55]} Nb6 {[%emt 0:01:59]} 18. Rfc1 {[%emt 0:01:26]} Rfc8 {[%emt 0:00:06]} 19. a3 {[%emt 0:05:20]} f6 {[%emt 0:11:53]} 20. exf6 {[%emt 0:08:46]} Bxf6 {[%emt 0:00:04]} 21. Bb5 {[%emt 0:00:07]} Ne7 {[%emt 0:05:41]} 22. Rc7 {[%emt 0:02:19]} Nf5 {[%emt 0:03:05]} 23. Rxc8+ {[%emt 0:03:51]} Rxc8 {[%emt 0:00:25]} 24. Rxc8+ {[%emt 0:00:03]} Nxc8 {[%emt 0:00:03]} 25. Bd7 {[%emt 0:00:06]} Nb6 {[%emt 0:00:20]} 26. Bxe6+ {[%emt 0:00:07]} Kf8 {[%emt 0:00:02]} 27. Bxf5 {[%emt 0:01:16]} gxf5 {[%emt 0:00:06]} 28. b3 {[%emt 0:00:11]} Nc8 {[%emt 0:02:22]} 29. Bf4 {[%emt 0:03:26]} Kf7 {[%emt 0:00:21]} 30. Kf1 {[%emt 0:00:30]} a6 {[%emt 0:02:11]} 31. Ke2 {[%emt 0:00:10]} Na7 {[%emt 0:00:24]} 32. Kd3 {[%emt 0:00:59]} Nc6 {[%emt 0:01:13]} 33. Bd2 {[%emt 0:03:09]} h5 {[%emt 0:04:31]} 34. a4 {[%emt 0:00:17]} b5 {[%emt 0:00:58]} 35. axb5 {[%emt 0:00:12]} axb5 {[%emt 0:00:01]} 36. Bg5 {[%emt 0:00:49]} Bg7 {[%emt 0:01:10]} 37. Bf4 {[%emt 0:00:43]} Ke6 {[%emt 0:00:41]} 38. Be3 {[%emt 0:01:09]} Bf6 {[%emt 0:00:22]} 39. Bd2 {[%emt 0:00:36]} Bg7 {[%emt 0:00:59]} 40. Bg5 {[%emt 0:00:48]} Nb4+ {[%emt 0:00:43]} 41. Kc3 {[%emt 0:01:17]} Nc6 {[%emt 0:01:38]} 42. Be3 {[%emt 0:01:38]} Bf6 {[%emt 0:00:35]} 43. g3 {[%emt 0:02:34]} b4+ {[%emt 0:06:23]} 44. Kd3 {[%emt 0:00:47]} Na5 {[%emt 0:01:33]} 45. Bd2 {[%emt 0:05:52]} Nc6 {[%emt 0:00:18]} 46. Bf4 {[%emt 0:02:45]} Na5 {[%emt 0:03:38]} 47. Kc2 {[%emt 0:03:53]} Nc6 {[%emt 0:01:02]} 48. Be5 {[%emt 0:00:06]} Bd8 {[%emt 0:02:31]} 49. Bg7 {[%emt 0:05:51]} Be7 {[%emt 0:07:40]} 50. Bh8 {[%emt 0:00:11]} Bd8 {[%emt 0:00:59]} 51. Be5 {[%emt 0:00:02]} Bb6 {[%emt 0:02:46]} 52. Bg7 {[%emt 0:00:21]} Ke7 {[%emt 0:00:40]} 53. Kd3 {[%emt 0:03:42]} Na5 {[%emt 0:00:32]} 54. Ne5 {[%emt 0:02:33]} Ke6 {[%emt 0:01:00]} 55. Bf8 {[%emt 0:02:45]} Nxb3 {[%emt 0:01:16]} 56. Nf3 {[%emt 0:00:49]} Nc1+ {[%emt 0:01:26]} 57. Kd2 {[%emt 0:00:11]} Na2 {[%emt 0:01:53]} 58. Kc2 {[%emt 0:00:46]} Ba7 {[%emt 0:02:10]} 59. Bh6 {[%emt 0:02:25]} Nc3 {[%emt 0:00:23]} 60. Kb3 {[%emt 0:00:26]} Nd1 {[%emt 0:00:58]} 61. Be3 {[%emt 0:01:38]} Bb8 {[%emt 0:01:30]} 62. Kxb4 {[%emt 0:00:26]} Bxg3 {[%emt 0:00:18]} 1/2-1/2

[Event "CZE Extraliga 2021-22"]
[Site "Czech Republic"]
[Date "2021.10.17"]
[Round "2.1"]
[White "DPP1 Sahidi Samir IM 2436"]
[Black "FMA2 Azarov Sergei GM 2598"]
[Result "1/2-1/2"]
[ECO "E10"]
[WhiteElo "2436"]
[BlackElo "2598"]
[Annotator "NA"]
[PlyCount "54"]
[EventDate "2021.10.17"]
[EventCountry "CZE"]
[SourceTitle "playchess.com"]
[Source "ChessBase"]
[SourceQuality "1"]
[TimeControl "40/5400+30:1800+30"]

1. d4 {[%emt 0:00:09]} Nf6 {[%emt 0:00:13]} 2. c4 {[%emt 0:00:56]} e6 {[%emt 0:00:19]} 3. Nf3 {[%emt 0:00:57]} d5 {[%emt 0:00:38]} 4. g3 {[%emt 0:02:18]} dxc4 {[%emt 0:01:15]} 5. Qa4+ {[%emt 0:03:02]} Nbd7 {[%emt 0:00:53]} 6. Bg2 {[%emt 0:05:09]} a6 {[%emt 0:01:45]} 7. Nc3 {[%emt 0:03:00]} Be7 {[%emt 0:02:23]} 8. Bf4 {[%emt 0:06:43]} Nd5 {[%emt 0:18:28]} 9. Qxc4 {[%emt 0:05:12]} Nxf4 {[%emt 0:00:30]} 10. gxf4 {[%emt 0:00:08]} b5 {[%emt 0:00:29]} 11. Qd3 {[%emt 0:01:14]} Bb7 {[%emt 0:00:30]} 12. O-O {[%emt 0:07:10]} c5 {[%emt 0:02:39]} 13. dxc5 {[%emt 0:12:16]} Nxc5 {[%emt 0:00:34]} 14. Qxd8+ {[%emt 0:01:09]} Rxd8 {[%emt 0:00:20]} 15. Rac1 {[%emt 0:00:45]} b4 {[%emt 0:32:01]} 16. Nb1 {[%emt 0:07:37]} Bxf3 {[%emt 0:02:41]} 17. Bxf3 {[%emt 0:00:14]} O-O {[%emt 0:00:09]} 18. Rc4 {[%emt 0:06:57]} b3 {[%emt 0:01:33]} 19. axb3 {[%emt 0:10:33]} Nxb3 {[%emt 0:00:08]} 20. e3 {[%emt 0:01:35]} Nd2 {[%emt 0:07:11]} 21. Nxd2 {[%emt 0:00:15]} Rxd2 {[%emt 0:00:22]} 22. Ra4 {[%emt 0:03:33]} Rxb2 {[%emt 0:05:54]} 23. Kg2 {[%emt 0:02:53]} g6 {[%emt 0:04:59]} 24. Rxa6 {[%emt 0:01:32]} Rd8 {[%emt 0:06:51]} 25. Kg3 {[%emt 0:01:28]} h5 {[%emt 0:00:23]} 26. Ra8 {[%emt 0:01:08]} Rxa8 {[%emt 0:02:00]} 27. Bxa8 Kg7 {[%emt 0:00:24]} 1/2-1/2

[Event "CZE Extraliga 2021-22"]
[Site "Czech Republic"]
[Date "2021.10.17"]
[Round "2.2"]
[White "NOV5 Navara David GM 2691"]
[Black "PAR6 Sadzikowski Daniel GM 252"]
[Result "1-0"]
[ECO "B47"]
[WhiteElo "2691"]
[BlackElo "2527"]
[Annotator "NA"]
[PlyCount "77"]
[EventDate "2021.10.17"]
[EventCountry "CZE"]
[SourceTitle "playchess.com"]
[Source "ChessBase"]
[SourceQuality "1"]
[TimeControl "40/5400+30:1800+30"]

1. e4 {[%emt 0:00:02]} c5 {[%emt 0:00:09]} 2. Nf3 {[%emt 0:00:04]} e6 {[%emt 0:00:21]} 3. d4 {[%emt 0:00:18]} cxd4 {[%emt 0:00:04]} 4. Nxd4 {[%emt 0:00:04]} Nc6 {[%emt 0:00:14]} 5. Nc3 {[%emt 0:00:08]} Qc7 {[%emt 0:00:05]} 6. f4 {[%emt 0:03:38]} a6 {[%emt 0:00:40]} 7. Nxc6 {[%emt 0:00:17]} bxc6 {[%emt 0:00:13]} 8. Bd3 {[%emt 0:00:55]} d5 {[%emt 0:01:09]} 9. O-O {[%emt 0:00:25]} Nf6 {[%emt 0:01:29]} 10. Qe2 {[%emt 0:06:14]} Be7 {[%emt 0:09:17]} 11. e5 {[%emt 0:02:58]} Nd7 {[%emt 0:00:45]} 12. Na4 {[%emt 0:00:07]} c5 {[%emt 0:05:31]} 13. c4 {[%emt 0:00:14]} d4 {[%emt 0:00:31]} 14. Bd2 {[%emt 0:01:01]} g6 {[%emt 0:07:35]} 15. Be4 {[%emt 0:03:30]} Bb7 {[%emt 0:01:29]} 16. Rab1 {[%emt 0:04:55]} O-O {[%emt 0:06:21]} 17. b3 {[%emt 0:01:40]} a5 {[%emt 0:15:03]} 18. Nb2 {[%emt 0:03:31]} Bc6 {[%emt 0:04:20]} 19. a4 {[%emt 0:07:10]} f6 {[%emt 0:09:27]} 20. exf6 {[%emt 0:00:32]} Rxf6 {[%emt 0:00:39]} 21. Nd3 {[%emt 0:03:17]} Bd6 {[%emt 0:14:42]} 22. Rf3 {[%emt 0:19:04]} Qb7 {[%emt 0:04:21]} 23. Nf2 {[%emt 0:03:29]} Bc7 {[%emt 0:01:09]} 24. Re1 {[%emt 0:01:20]} Re8 {[%emt 0:01:52]} 25. h4 {[%emt 0:05:28]} Kh8 {[%emt 0:07:17]} 26. h5 {[%emt 0:01:39]} Re7 {[%emt 0:07:07]} 27. Bxc6 {[%emt 0:02:39]} Qxc6 {[%emt 0:00:01]} 28. Ne4 {[%emt 0:00:46]} Rf8 {[%emt 0:00:50]} 29. hxg6 {[%emt 0:01:00]} hxg6 {[%emt 0:00:14]} 30. Rh3+ {[%emt 0:01:02]} Kg8 {[%emt 0:01:34]} 31. Qg4 {[%emt 0:01:48]} Nf6 {[%emt 0:00:54]} 32. Nxf6+ {[%emt 0:03:51]} Rxf6 {[%emt 0:00:02]} 33. Qh4 {[%emt 0:00:08]} Kf7 {[%emt 0:00:14]} 34. Qh8 {[%emt 0:00:08]} e5 {[%emt 0:00:23]} 35. Rh7+ {[%emt 0:00:07]} Ke6 {[%emt 0:00:05]} 36. fxe5 {[%emt 0:03:20]} Rff7 {[%emt 0:00:33]} 37. Qc8+ {[%emt 0:00:31]} Qd7 {[%emt 0:00:13]} 38. Qa6+ {[%emt 0:00:09]} Kf5 {[%emt 0:00:36]} 39. g4+ {[%emt 0:00:10]} 1-0

[Event "CZE Extraliga 2021-22"]
[Site "Czech Republic"]
[Date "2021.10.17"]
[Round "2.2"]
[White "FMA5 Zwardon Vojtech IM 2470"]
[Black "DPP2 Stohl Igor GM 2458"]
[Result "1/2-1/2"]
[ECO "A13"]
[WhiteElo "2470"]
[BlackElo "2458"]
[Annotator "NA"]
[PlyCount "31"]
[EventDate "2021.10.17"]
[EventCountry "CZE"]
[SourceTitle "playchess.com"]
[Source "ChessBase"]
[SourceQuality "1"]
[TimeControl "40/5400+30:1800+30"]

1. c4 {[%emt 0:00:01]} e6 {[%emt 0:00:14]} 2. Nf3 {[%emt 0:00:02]} Nf6 {[%emt 0:00:34]} 3. Nc3 {[%emt 0:00:20]} d5 {[%emt 0:00:32]} 4. e3 {[%emt 0:00:03]} c5 {[%emt 0:01:13]} 5. d4 {[%emt 0:00:11]} a6 {[%emt 0:00:24]} 6. cxd5 {[%emt 0:00:06]} exd5 {[%emt 0:00:07]} 7. Be2 {[%emt 0:01:39]} Nc6 {[%emt 0:00:13]} 8. O-O {[%emt 0:00:10]} Bd6 {[%emt 0:00:55]} 9. dxc5 {[%emt 0:00:06]} Bxc5 {[%emt 0:00:03]} 10. b3 {[%emt 0:02:44]} O-O {[%emt 0:01:07]} 11. Bb2 {[%emt 0:00:17]} Ba7 {[%emt 0:01:02]} 12. Qc2 {[%emt 0:00:48]} Qe7 {[%emt 0:22:16]} 13. Rfd1 {[%emt 0:09:45]} Rd8 {[%emt 0:05:30]} 14. Rac1 {[%emt 0:00:50]} Bg4 {[%emt 0:11:17]} 15. Ng5 {[%emt 0:27:13]} g6 {[%emt 0:10:20]} 16. Nf3 {[%emt 0:01:43]} 1/2-1/2

[Event "CZE Extraliga 2021-22"]
[Site "Czech Republic"]
[Date "2021.10.17"]
[Round "2.2"]
[White "FMB2 Lewtak Damian IM 2379"]
[Black "UNI3 Cernousek Lukas IM 2459"]
[Result "1/2-1/2"]
[ECO "D00"]
[WhiteElo "2379"]
[BlackElo "2459"]
[Annotator "NA"]
[PlyCount "69"]
[EventDate "2021.10.17"]
[EventCountry "CZE"]
[SourceTitle "playchess.com"]
[Source "ChessBase"]
[SourceQuality "1"]
[TimeControl "40/5400+30:1800+30"]

1. d4 {[%emt 0:00:03]} d5 {[%emt 0:00:05]} 2. c3 {[%emt 0:00:04]} c5 {[%emt 0:00:05]} 3. Nf3 {[%emt 0:00:05]} Nf6 {[%emt 0:00:06]} 4. e3 {[%emt 0:02:54]} Nbd7 {[%emt 0:02:44]} 5. Nbd2 {[%emt 0:01:08]} g6 {[%emt 0:03:35]} 6. Bd3 {[%emt 0:00:51]} Bg7 {[%emt 0:00:05]} 7. O-O {[%emt 0:00:28]} O-O {[%emt 0:00:04]} 8. Re1 {[%emt 0:02:58]} b6 {[%emt 0:16:06]} 9. a4 {[%emt 0:12:36]} Bb7 {[%emt 0:05:00]} 10. a5 {[%emt 0:00:42]} Qc7 {[%emt 0:11:15]} 11. a6 {[%emt 0:08:16]} Bc6 {[%emt 0:00:02]} 12. e4 {[%emt 0:05:01]} dxe4 {[%emt 0:17:28]} 13. Nxe4 {[%emt 0:00:27]} Nxe4 {[%emt 0:00:08]} 14. Bxe4 {[%emt 0:00:08]} Bxe4 {[%emt 0:00:05]} 15. Rxe4 {[%emt 0:00:04]} cxd4 {[%emt 0:00:09]} 16. cxd4 {[%emt 0:13:29]} Nf6 {[%emt 0:00:34]} 17. Bf4 {[%emt 0:00:07]} Qd7 {[%emt 0:00:13]} 18. Re1 {[%emt 0:01:48]} Nd5 {[%emt 0:07:37]} 19. Be5 {[%emt 0:00:23]} Bh6 {[%emt 0:08:58]} 20. Qb3 {[%emt 0:01:59]} Rac8 {[%emt 0:02:10]} 21. Bg3 {[%emt 0:00:42]} f6 {[%emt 0:03:04]} 22. Re2 {[%emt 0:01:33]} e6 {[%emt 0:06:07]} 23. Rae1 {[%emt 0:04:41]} Rc1 {[%emt 0:00:59]} 24. Rxc1 {[%emt 0:04:45]} Bxc1 {[%emt 0:00:01]} 25. Rc2 {[%emt 0:00:19]} Rc8 {[%emt 0:00:23]} 26. Ne1 {[%emt 0:01:54]} Bf4 {[%emt 0:03:53]} 27. Nd3 {[%emt 0:02:18]} Bxg3 {[%emt 0:00:23]} 28. hxg3 {[%emt 0:00:16]} Rxc2 {[%emt 0:03:17]} 29. Qxc2 {[%emt 0:00:05]} Kf7 {[%emt 0:01:16]} 30. g4 {[%emt 0:10:15]} Ke7 {[%emt 0:00:02]} 31. Qd2 {[%emt 0:03:06]} Nc7 {[%emt 0:02:48]} 32. Qh6 {[%emt 0:02:27]} Ke8 {[%emt 0:02:07]} 33. g5 {[%emt 0:01:29]} Qxd4 {[%emt 0:03:51]} 34. Qxh7 {[%emt 0:00:39]} Qxd3 {[%emt 0:00:08]} 35. Qxc7 {[%emt 0:00:22]} 1/2-1/2

[Event "CZE Extraliga 2021-22"]
[Site "Czech Republic"]
[Date "2021.10.17"]
[Round "2.3"]
[White "PAR7 Pechac Jergus GM 2544"]
[Black "NOV7 Grandelius Nils GM 2662"]
[Result "0-1"]
[ECO "B90"]
[WhiteElo "2544"]
[BlackElo "2662"]
[Annotator "NA"]
[PlyCount "58"]
[EventDate "2021.10.17"]
[EventCountry "CZE"]
[SourceTitle "playchess.com"]
[Source "ChessBase"]
[SourceQuality "1"]
[TimeControl "40/5400+30:1800+30"]

1. e4 {[%emt 0:04:19]} c5 {[%emt 0:03:40]} 2. Nf3 {[%emt 0:00:06]} d6 {[%emt 0:00:04]} 3. d4 {[%emt 0:00:06]} cxd4 {[%emt 0:00:04]} 4. Nxd4 {[%emt 0:00:05]} Nf6 {[%emt 0:00:04]} 5. Nc3 {[%emt 0:00:06]} a6 {[%emt 0:00:02]} 6. a4 {[%emt 0:00:06]} g6 {[%emt 0:01:24]} 7. Be2 {[%emt 0:00:08]} Bg7 {[%emt 0:00:06]} 8. O-O {[%emt 0:00:06]} O-O {[%emt 0:00:30]} 9. Be3 {[%emt 0:00:03]} Nc6 {[%emt 0:00:15]} 10. Nxc6 {[%emt 0:00:05]} bxc6 {[%emt 0:00:05]} 11. a5 {[%emt 0:00:05]} Rb8 {[%emt 0:13:13]} 12. b3 {[%emt 0:00:09]} c5 {[%emt 0:07:59]} 13. Qd2 {[%emt 0:00:09]} Qc7 {[%emt 0:07:33]} 14. Bh6 {[%emt 0:08:08]} Bxh6 {[%emt 0:11:36]} 15. Qxh6 {[%emt 0:00:06]} Be6 {[%emt 0:00:08]} 16. Bxa6 {[%emt 0:06:48]} Ra8 {[%emt 0:07:28]} 17. Bd3 {[%emt 0:00:07]} Rxa5 {[%emt 0:00:20]} 18. Nb5 {[%emt 0:00:06]} Qb6 {[%emt 0:02:09]} 19. Rxa5 {[%emt 0:00:08]} Qxa5 {[%emt 0:00:08]} 20. Qg5 {[%emt 0:00:06]} c4 {[%emt 0:11:32]} 21. bxc4 {[%emt 0:05:08]} Rc8 {[%emt 0:00:37]} 22. e5 {[%emt 0:40:14]} Rc5 {[%emt 0:03:30]} 23. Nxd6 {[%emt 0:02:39]} Rxe5 {[%emt 0:00:14]} 24. Qh4 {[%emt 0:00:06]} Qb4 {[%emt 0:02:52]} 25. Ne4 {[%emt 0:08:05]} Nxe4 {[%emt 0:00:09]} 26. Bxe4 {[%emt 0:02:51]} Qxc4 {[%emt 0:01:10]} 27. f3 {[%emt 0:01:37]} f5 {[%emt 0:05:10]} 28. Qxe7 {[%emt 0:03:46]} Qd4+ {[%emt 0:01:12]} 29. Rf2 {[%emt 0:09:55]} Qd1+ {[%emt 0:01:20]} 0-1

[Event "CZE Extraliga 2021-22"]
[Site "Czech Republic"]
[Date "2021.10.17"]
[Round "2.3"]
[White "LYS5 Yemelin Vasily GM 2527"]
[Black "OST5 Rasik Vitezslav GM 2425"]
[Result "1/2-1/2"]
[ECO "B00"]
[WhiteElo "2527"]
[BlackElo "2425"]
[Annotator "NA"]
[PlyCount "28"]
[EventDate "2021.10.17"]
[EventCountry "CZE"]
[SourceTitle "playchess.com"]
[Source "ChessBase"]
[SourceQuality "1"]
[TimeControl "40/5400+30:1800+30"]

1. e4 {[%emt 0:00:03]} d6 {[%emt 0:00:35]} 2. d4 {[%emt 0:00:12]} g6 {[%emt 0:00:14]} 3. Nf3 {[%emt 0:00:41]} Nf6 {[%emt 0:00:24]} 4. Bd3 {[%emt 0:00:55]} Bg7 {[%emt 0:00:09]} 5. O-O {[%emt 0:00:15]} O-O {[%emt 0:00:05]} 6. Re1 {[%emt 0:01:23]} Nc6 {[%emt 0:00:21]} 7. c3 {[%emt 0:05:49]} e5 {[%emt 0:02:15]} 8. Nbd2 {[%emt 0:03:08]} Nh5 {[%emt 0:10:25]} 9. Nb3 {[%emt 0:00:54]} h6 {[%emt 0:08:13]} 10. Be3 {[%emt 0:05:36]} Qf6 {[%emt 0:04:24]} 11. g3 {[%emt 0:20:33]} Bg4 {[%emt 0:12:53]} 12. Be2 {[%emt 0:00:44]} Qd8 {[%emt 0:08:22]} 13. dxe5 {[%emt 0:24:42]} dxe5 {[%emt 0:07:13]} 14. Qc1 {[%emt 0:16:23]} Nf6 {[%emt 0:09:52]} 1/2-1/2

[Event "CZE Extraliga 2021-22"]
[Site "Czech Republic"]
[Date "2021.10.17"]
[Round "2.3"]
[White "Bernasek, Jan"]
[Black "Stalmach, Richard"]
[Result "1-0"]
[ECO "B31"]
[WhiteElo "2498"]
[BlackElo "2352"]
[Annotator "ChessBase"]
[PlyCount "55"]
[EventDate "2021.10.17"]
[EventCountry "CZE"]
[SourceTitle "playchess.com"]
[Source "ChessBase"]
[SourceQuality "1"]
[TimeControl "40/5400+30:1800+30"]

1. e4 {[%emt 0:00:11]} c5 {[%emt 0:00:38]} 2. Nf3 {[%emt 0:00:07]} Nc6 {[%emt 0:01:36]} 3. Bb5 {[%emt 0:00:26]} g6 {[%emt 0:00:20]} 4. O-O {[%emt 0:01:49]} Bg7 {[%emt 0:00:45]} 5. c3 {[%emt 0:01:42]} e5 {[%emt 0:05:49]} 6. d3 {[%emt 0:06:07]} Nge7 {[%emt 0:01:11]} 7. Be3 {[%emt 0:05:16]} d6 {[%emt 0:02:11]} 8. h3 {[%emt 0:05:33]} O-O {[%emt 0:02:27]} 9. Nh2 {[%emt 0:05:28]} Be6 {[%emt 0:09:04]} 10. Ba4 {[%emt 0:05:59]} Rc8 {[%emt 0:05:41]} 11. Nd2 {[%emt 0:02:58]} b6 {[%emt 0:01:00]} 12. f4 {[%emt 0:13:12]} d5 {[%emt 0:10:44]} 13. fxe5 {[%emt 0:03:15]} dxe4 {[%emt 0:04:25]} 14. Nxe4 {[%emt 0:03:07]} Nxe5 {[%emt 0:00:29]} 15. Bg5 {[%emt 0:05:24]} Bf5 {[%emt 0:09:09]} 16. Bc2 {[%emt 0:04:57]} h6 {[%emt 0:01:59]} 17. Bh4 {[%emt 0:01:52]} Bxe4 {[%emt 0:05:21]} 18. dxe4 {[%emt 0:00:25]} g5 {[%emt 0:00:16]} 19. Bg3 {[%emt 0:00:58]} Nc4 {[%emt 0:04:02]} 20. Qe2 {[%emt 0:02:01]} Nxb2 {[%emt 0:05:59]} 21. Rab1 {[%emt 0:10:27]} Bxc3 {[%emt 0:00:41]} 22. e5 {[%emt 0:00:49]} Rc6 {[%emt 0:09:10]} 23. Ng4 {[%emt 0:03:04]} Qd4+ {[%emt 0:04:34]} 24. Kh1 {[%emt 0:02:27]} Nd5 {[%emt 0:00:42]} 25. Be4 {[%emt 0:05:26]} Nc4 {[%emt 0:05:08]} 26. Bf2 {[%emt 0:04:00]} Nce3 {[%emt 0:06:48]} 27. Bxd5 {[%emt 0:02:30]} Nxf1 {[%emt 0:00:25]} 28. Bxc6 {[%emt 0:00:26]} 1-0

[Event "CZE Extraliga 2021-22"]
[Site "Czech Republic"]
[Date "2021.10.17"]
[Round "2.3"]
[White "DPP3 Pulpan Jakub IM 2406"]
[Black "FMA6 Antoniewski Rafal GM 2472"]
[Result "1/2-1/2"]
[ECO "A05"]
[WhiteElo "2406"]
[BlackElo "2472"]
[Annotator "NA"]
[PlyCount "51"]
[EventDate "2021.10.17"]
[EventCountry "CZE"]
[SourceTitle "playchess.com"]
[Source "ChessBase"]
[SourceQuality "1"]
[TimeControl "40/5400+30:1800+30"]

1. Nf3 Nf6 2. b3 g6 3. Bb2 Bg7 4. g3 d6 5. d4 b5 6. Bg2 Bb7 7. O-O O-O 8. Na3 c6 9. Re1 d5 10. c4 bxc4 11. bxc4 Nbd7 12. Rb1 Ne4 13. Nd2 Nxd2 14. Qxd2 Nf6 15. Nc2 Qd7 16. Ba3 Rfb8 17. Qb4 Bf8 18. Qa5 Bc8 19. Nb4 e6 20. Nd3 Bxa3 21. Qxa3 Qc7 22. Ne5 Kg7 23. Rbc1 Rb6 24. cxd5 exd5 25. Qc5 Be6 26. Qa5 1/2-1/2

[Event "CZE Extraliga 2021-22"]
[Site "Czech Republic"]
[Date "2021.10.17"]
[Round "2.4"]
[White "OST6 Velicka Petr GM 2398"]
[Black "LYS6 Oral Tomas GM 2494"]
[Result "1/2-1/2"]
[ECO "B81"]
[WhiteElo "2398"]
[BlackElo "2494"]
[Annotator "NA"]
[PlyCount "20"]
[EventDate "2021.10.17"]
[EventCountry "CZE"]
[SourceTitle "playchess.com"]
[Source "ChessBase"]
[SourceQuality "1"]
[TimeControl "40/5400+30:1800+30"]

1. e4 {[%emt 0:00:03]} c5 {[%emt 0:00:20]} 2. Nf3 {[%emt 0:00:07]} e6 {[%emt 0:00:07]} 3. d4 {[%emt 0:00:04]} cxd4 {[%emt 0:00:17]} 4. Nxd4 {[%emt 0:00:07]} Nf6 {[%emt 0:00:22]} 5. Nc3 {[%emt 0:00:09]} d6 {[%emt 0:00:29]} 6. g4 {[%emt 0:00:06]} h6 {[%emt 0:00:23]} 7. h4 {[%emt 0:00:15]} Nc6 {[%emt 0:00:51]} 8. Rg1 {[%emt 0:01:46]} h5 {[%emt 0:00:17]} 9. gxh5 {[%emt 0:02:29]} Nxh5 {[%emt 0:00:27]} 10. Bg5 {[%emt 0:00:15]} Nf6 {[%emt 0:00:17]} 1/2-1/2